bitfinex-derivatives/quotes_SOLF0:USTF0_20260226
["timestamp","ask_amount","ask_price","bid_price","bid_amount"]
[1772065315470,10.122,88.904,88.848,5.23117146]
[1772065316356,10.122,88.904,88.849,15.7379458]
[1772065316856,10.121,88.912,88.852,5.6097458]
[1772065317055,5.63713202,88.928,88.852,5.6097458]
[1772065317653,5.32057087,88.946,88.863,5.6097458]
[1772065318655,5.32057087,88.944,88.863,5.6097458]
[1772065318862,186.15633584,88.994,88.846,5.6097458]
[1772065318863,5.32057087,88.939,88.846,5.6097458]
[1772065319252,5.32057087,88.939,88.877,10.1249]
[1772065319455,5.32057087,88.939,88.861,5.6097458]
[1772065320159,10.1189,88.931,88.861,5.6097458]
[1772065320460,5.32057087,88.939,88.86,8.67209956]
[1772065320461,5.32057087,88.939,88.887,10.1238]
[1772065320663,5.32057087,88.959,88.878,5.6097458]
[1772065321362,5.32057087,88.959,88.881,5.6097458]
[1772065322968,5.32057087,88.959,88.905,10.1217]
[1772065323968,5.32057087,88.959,88.901,5.6097458]
[1772065324259,5.32057087,88.959,88.882,5.6097458]
[1772065324458,5.32057087,88.959,88.86,8.67209956]
[1772065324652,10.1207,88.915,88.861,5.6097458]
[1772065325364,5.32057087,88.928,88.864,5.6097458]
[1772065326366,5.32057087,88.928,88.841,5.6097458]
[1772065327359,5.32057087,88.928,88.861,5.6097458]
[1772065328365,5.32057087,88.959,88.879,10.1247]
[1772065329563,10.1188,88.931,88.879,10.1247]
[1772065329770,5.32057087,88.942,88.878,5.6097458]
[1772065330168,10.1197,88.924,88.878,5.6097458]
[1772065330963,10.1205,88.917,88.878,5.6097458]
[1772065331266,5.32057087,88.942,88.878,5.6097458]
[1772065331661,8.23703413,88.971,88.861,5.6097458]
[1772065331870,5.32057087,88.987,88.901,5.6097458]
[1772065332069,5.32057087,88.979,88.88,8.67209956]
[1772065332262,8.67209956,88.98,88.881,5.6097458]
[1772065332463,5.32057087,88.987,88.901,5.6097458]
[1772065332769,10.1136,88.978,88.914,5.6097458]
[1772065333071,5.32057087,88.987,88.914,5.6097458]
[1772065333371,5.32057087,88.987,88.875,20.2502]
[1772065333372,10.1126,88.986,88.923,5.6097458]
[1772065334170,10.1136,88.977,88.923,5.6097458]
[1772065335471,5.32057087,88.987,88.926,5.6097458]
[1772065336476,10.1118,88.994,88.93,5.6097458]
[1772065337575,5.32057087,88.993,88.93,5.6097458]
[1772065338169,10.114,88.974,88.93,5.6097458]
[1772065338773,10.114,88.974,88.92,8.67209956]
[1772065339078,5.32057087,88.965,88.9,8.67209956]
[1772065339277,5.32057087,88.965,88.901,5.6097458]
[1772065339784,5.32057087,89.022,88.941,5.6097458]
[1772065340076,5.32057087,89.022,88.961,5.6097458]
[1772065341875,5.32057087,89.022,88.963,5.6097458]
[1772065342873,5.32057087,89.022,88.965,10.1149]
[1772065343069,5.32057087,89.022,88.965,15.7246458]
[1772065343668,5.32057087,89.039,88.987,10.1124]
[1772065343867,5.32057087,89.039,88.982,5.6097458]
[1772065344874,10.1068,89.038,88.982,5.6097458]
[1772065345171,5.32057087,89.037,88.982,5.6097458]
[1772065345368,8.86496898,89.08,89.001,5.6097458]
[1772065345369,5.32057087,89.072,89.001,5.6097458]
[1772065345574,20.89325782,89.146,88.903,472.3615]
[1772065345575,5.32057087,89.101,89.028,5.6097458]
[1772065345770,5.32057087,89.101,89.03,8.67209956]
[1772065345970,5.58066498,89.077,89.01,5.68655834]
[1772065346373,5.58066498,89.077,88.924,224.72]
[1772065346374,5.58066498,89.077,88.992,5.68655834]
[1772065347374,5.58066498,89.077,88.924,224.72]
[1772065347375,5.58066498,89.054,88.972,5.68655834]
[1772065348280,5.58066498,89.051,88.983,10.1129]
[1772065348674,5.58066498,89.051,88.97,8.67209956]
[1772065348675,5.58066498,89.051,88.987,5.68655834]
[1772065348875,5.58066498,89.051,88.991,5.68655834]
[1772065349371,5.58066498,89.071,88.991,5.68655834]
[1772065349974,5.58066498,89.06,88.993,10.1118]
[1772065350677,157.0829,89.114,88.991,5.68655834]
[1772065350678,5.58066498,89.112,89.044,10.106]
[1772065350874,5.58066498,89.112,89.031,5.68655834]
[1772065351181,5.58066498,89.112,88.99,8.67209956]
[1772065351182,5.58066498,89.112,89.02,8.67209956]
[1772065351381,8.67209956,89.12,89.02,8.67209956]
[1772065351382,5.58066498,89.09,89.02,8.67209956]
[1772065351582,5.58066498,89.09,89.013,5.68655834]
[1772065351984,5.30110468,89.082,89.013,5.68655834]
[1772065352675,5.30110468,89.121,89.031,5.61236564]
[1772065352878,5.30110468,89.121,89.051,5.61236564]
[1772065353276,5.30110468,89.117,89.051,5.61236564]
[1772065353582,5.30110468,89.117,89.03,8.67209956]
[1772065353775,5.30110468,89.1,89.03,8.67209956]
[1772065354175,5.30110468,89.136,89.07,8.67209956]
[1772065354376,5.30110468,89.136,89.071,5.61236564]
[1772065355373,10.0947,89.144,89.071,5.61236564]
[1772065356179,8.62956355,89.22,89.04,8.62956355]
[1772065356180,5.30110468,89.174,89.091,5.61236564]
[1772065356678,5.30110468,89.161,89.091,5.61236564]
[1772065356882,5.30110468,89.177,89.091,5.61236564]
[1772065357384,5.30110468,89.174,89.091,5.61236564]
[1772065358282,5.30110468,89.197,89.131,5.61236564]
[1772065358781,5.30110468,89.188,89.111,5.61236564]
[1772065359385,5.30110468,89.188,89.112,5.61236564]
[1772065359887,5.30110468,89.186,89.112,5.61236564]
[1772065360381,5.30110468,89.186,89.11,8.62956355]
[1772065360382,5.30110468,89.188,89.11,8.62956355]
[1772065360590,5.30110468,89.188,89.11,5.61236564]
[1772065360778,5.30110468,89.188,89.121,5.61236564]
[1772065361277,5.30110468,89.188,89.122,5.61236564]
[1772065362281,5.30110468,89.188,89.121,5.61236564]
[1772065362680,5.30110468,89.207,89.121,5.61236564]
[1772065363281,5.30110468,89.207,89.13,10.0962]
[1772065363483,5.30110468,89.207,89.131,5.61236564]
[1772065363985,10.0882,89.202,89.131,5.61236564]
[1772065364189,5.30110468,89.207,89.132,10.096]
[1772065364391,5.30110468,89.207,89.131,5.61236564]
[1772065364587,1.9516025,89.232,89.1,8.62956355]
[1772065364777,483.11462172,89.271,89.166,10.0921]
[1772065364778,6.89864523,89.231,89.166,10.0921]
[1772065365483,6.89864523,89.231,89.13,8.62956355]
[1772065365787,1.95126327,89.252,89.1,8.62956355]
[1772065365788,6.89823995,89.221,89.14,8.62956355]
[1772065366484,6.8664077,89.219,89.144,10.0946]
[1772065367687,6.86596917,89.218,89.144,10.0946]
[1772065368884,6.81134326,89.251,89.16,8.62956355]
[1772065369481,6.81134326,89.249,89.176,10.0909]
[1772065369883,6.81134326,89.249,89.16,8.62956355]
[1772065370188,6.87313496,89.224,89.153,10.0935]
[1772065370382,6.87313496,89.224,89.14,8.62956355]
[1772065370686,6.87313496,89.221,89.152,10.0937]
[1772065371077,1.95104448,89.262,89.093,177.3182]
[1772065371078,6.87272717,89.249,89.16,8.62956355]
[1772065371785,6.87272717,89.249,89.183,10.0902]
[1772065372888,6.92327213,89.248,89.183,10.0902]
[1772065373287,6.92327213,89.267,89.201,10.0881]
[1772065373482,6.92327213,89.263,89.18,8.62956355]
[1772065373688,6.92327213,89.263,89.2,8.62956355]
[1772065374088,6.91422215,89.257,89.19,10.0894]
[1772065374785,6.91422215,89.257,89.18,8.62956355]
[1772065374786,6.91422215,89.253,89.18,18.72006355]
[1772065374991,6.91422215,89.253,89.103,157.0994]
[1772065374992,6.91422215,89.253,89.16,8.62956355]
[1772065375583,6.91422215,89.253,89.108,6.0]
[1772065375584,6.91422215,89.253,89.18,8.62956355]
[1772065376987,10.0826,89.251,89.192,10.0892]
[1772065377191,6.93771704,89.25,89.18,8.62956355]
[1772065377994,6.97270654,89.231,89.16,8.62956355]
[1772065379087,6.97270654,89.231,89.17,10.0917]
[1772065379283,6.97270654,89.231,89.16,8.62956355]
[1772065379689,6.97270654,89.231,89.17,10.0916]
[1772065379889,6.97270654,89.231,89.16,8.62956355]
[1772065380288,6.99155264,89.252,89.18,8.62956355]
[1772065380788,10.0864,89.218,89.16,8.62956355]
[1772065381000,6.99155264,89.221,89.16,8.62956355]
[1772065381491,6.99155264,89.221,89.083,20.203]
[1772065381689,6.99155264,89.221,89.13,8.62956355]
[1772065382284,22.11346171,89.262,89.11,8.62956355]
[1772065382285,6.97124555,89.194,89.11,8.62956355]
[1772065382485,6.97124555,89.189,89.09,8.62956355]
[1772065382688,10.0928,89.161,89.1,10.0996]
[1772065382999,10.0928,89.161,89.09,8.62956355]
[1772065383000,6.97124555,89.16,89.09,8.62956355]
[1772065384389,7.01246152,89.149,89.09,8.62956355]
[1772065384593,7.01246152,89.149,89.07,8.62956355]
[1772065384993,7.01226869,89.135,89.05,8.62956355]
[1772065385891,17.12568606,89.131,89.055,10.1047]
[1772065386294,7.02948606,89.13,89.055,10.1047]
[1772065386494,7.02948606,89.128,89.055,10.1047]
[1772065387591,7.02931453,89.117,89.05,8.62956355]
[1772065387786,7.02931453,89.117,89.038,440.16981554]
[1772065388596,7.0096042,89.103,89.038,440.16981554]
[1772065389802,7.0096042,89.103,89.02,10.1087]
[1772065390200,7.00708964,89.09,89.01,8.62956355]
[1772065390500,7.00708964,89.09,89.013,10.1095]
[1772065391597,8.62956355,89.1,89.013,10.1095]
[1772065391598,7.00690364,89.083,89.013,10.1095]
[1772065392699,7.00690364,89.083,89.01,8.62956355]
[1772065393001,6.97274555,89.119,89.03,8.62956355]
[1772065393202,6.97274555,89.116,89.03,8.62956355]
[1772065393997,10.0987,89.109,89.032,10.1073]
[1772065394198,6.97274555,89.116,88.98,8.62956355]
[1772065394199,6.97274555,89.116,89.05,8.62956355]
[1772065394796,6.97042132,89.114,89.05,8.62956355]
[1772065395402,10.0985,89.111,89.05,8.62956355]
[1772065395602,6.97042132,89.11,89.02,8.62956355]
[1772065395996,8.62956355,89.12,89.02,8.62956355]
[1772065395997,10.1012,89.086,89.02,8.62956355]
[1772065396196,6.9730572,89.109,89.02,8.62956355]
[1772065396797,10.0989,89.107,89.02,8.62956355]
[1772065397006,10.0989,89.107,89.04,8.62956355]
[1772065397804,6.97285708,89.106,89.04,8.62956355]
[1772065399399,6.965685,89.103,89.04,8.62956355]
[1772065399606,6.965685,89.103,89.031,10.1074]
[1772065399806,6.965685,89.103,89.02,18.73816355]
[1772065400004,6.965685,89.103,89.02,8.62956355]
[1772065400005,6.96706404,89.102,89.02,8.62956355]
[1772065400807,6.96706404,89.102,89.047,10.1056]
[1772065401911,6.96686646,89.142,89.06,8.62956355]
[1772065402410,6.96630523,89.129,89.04,8.62956355]
[1772065403204,6.96630523,89.129,89.007,33.65]
[1772065403205,10.0965,89.128,89.06,18.73366355]
[1772065403409,6.96611257,89.127,89.06,10.1041]
[1772065403810,6.96611257,89.127,89.05,8.62956355]
[1772065404307,10.0992,89.105,89.05,8.62956355]
[1772065404511,6.96611257,89.127,89.05,8.62956355]
[1772065405210,17.0500521,89.115,89.053,10.105]
[1772065405406,17.0500521,89.115,89.05,8.62956355]
[1772065405407,6.9520521,89.115,89.05,8.62956355]
[1772065406510,6.95925118,89.14,89.05,8.62956355]
[1772065406908,10.0968,89.126,89.062,10.1039]
[1772065407210,6.95906446,89.125,89.062,10.1039]
[1772065407398,6.95906446,89.125,89.05,8.62956355]
[1772065408012,6.95906446,89.125,89.009,33.65]
[1772065408204,6.95906446,89.125,89.04,8.62956355]
[1772065409210,10.0981,89.114,89.058,10.1043]
[1772065410408,10.0971,89.123,89.063,10.1038]
[1772065411107,6.95552767,89.12,89.06,8.62956355]
[1772065411614,10.0988,89.108,89.045,10.1058]
[1772065411805,6.95552767,89.107,89.045,10.1058]
[1772065412318,6.95552767,89.107,89.04,8.62956355]
[1772065414006,6.95552767,89.107,88.999,53.8722]
[1772065414214,6.97258027,89.099,88.99,8.62956355]
[1772065414606,6.97258027,89.066,89.004,10.1105]
[1772065414803,6.97258027,89.086,89.01,8.62956355]
[1772065415010,8.62956355,89.16,89.03,8.62956355]
[1772065415011,6.97242198,89.129,89.03,8.62956355]
[1772065415708,6.97242198,89.129,89.0,8.62956355]
[1772065415709,6.97242198,89.095,89.0,8.62956355]
[1772065416408,7.00521396,89.077,89.013,10.1094]
[1772065417715,7.00508268,89.074,89.004,10.1105]
[1772065419004,10.1036,89.065,89.004,10.1105]
[1772065420010,7.03858936,89.062,89.004,10.1105]
[1772065420807,7.03858936,89.062,89.0,8.64227027]
[1772065421013,10.1039,89.063,89.0,8.64227027]
[1772065421315,7.03848723,89.077,89.02,8.64227027]
[1772065422216,17.15161483,89.069,89.0,8.64227027]
[1772065422417,7.04841483,89.068,89.0,8.64227027]
[1772065422721,7.04841483,89.063,89.0,8.64227027]
[1772065423109,7.04832167,89.052,89.0,8.64227027]
[1772065423309,7.04832167,89.052,88.98,8.64227027]
[1772065424019,10.1053,89.05,88.981,10.1131]
[1772065424220,7.04832167,89.052,88.98,8.64227027]
[1772065424719,7.04832167,89.052,88.99,10.1121]
[1772065425115,7.04832167,89.052,88.98,8.64227027]
[1772065425512,7.05791206,89.071,89.0,8.64227027]
[1772065426611,7.05791206,89.071,88.97,20.2288]
[1772065426816,7.05791206,89.071,88.99,8.64227027]
[1772065427718,7.05791206,89.071,88.98,8.64227027]
[1772065428026,17.17658079,89.057,88.994,10.1116]
[1772065428324,7.07198079,89.056,88.994,10.1116]
[1772065429615,7.07190877,89.078,89.017,10.109]
[1772065429819,17.17510877,89.069,89.017,10.109]
[1772065430821,7.04449894,89.068,89.017,10.109]
[1772065433520,7.04449894,89.068,89.0,8.64227027]
[1772065434115,7.04449894,89.068,88.973,19.84618458]
[1772065434427,7.04449894,89.068,89.0,8.64227027]
[1772065436820,6.96635743,89.066,89.0,8.64227027]
[1772065437019,6.96635743,89.066,88.98,8.64227027]
[1772065437926,6.96236658,89.056,89.0,10.111]
[1772065438718,6.96236658,89.056,89.007,10.1101]
[1772065441633,7.08515328,89.054,88.999,10.111]
[1772065441828,7.08515328,89.054,88.98,8.64227027]
[1772065442925,7.08515328,89.054,89.006,10.1102]
[1772065443533,7.08515328,89.054,89.014,10.1094]
[1772065444326,7.10559592,89.049,88.94,448.71643236]
[1772065444731,33.65,89.074,88.94,448.71643236]
[1772065444732,7.10559592,89.029,88.94,448.71643236]
[1772065445332,7.10555137,89.017,88.959,10.1156]
[1772065445528,7.10555137,89.017,88.94,448.71643236]
[1772065445729,8.64227027,89.05,88.94,448.71643236]
[1772065446028,7.22086216,89.05,88.941,73.73158458]
[1772065446232,7.22086216,89.05,88.98,8.64227027]
[1772065446625,7.22086216,89.05,88.991,10.112]
[1772065447031,7.22086216,89.05,88.98,8.64227027]
[1772065447427,7.22086216,89.05,88.991,10.1119]
[1772065449337,7.22086216,89.05,89.0,10.1109]
[1772065450134,10.44556066,89.109,88.94,467.02273749]
[1772065450135,15.93793543,89.15,89.04,17.28454054]
[1772065450337,8.89178668,89.149,89.07,8.64227027]
[1772065450552,15.93793543,89.15,89.09,8.64227027]
[1772065450747,15.93793543,89.15,89.11,8.64227027]
[1772065451155,15.9380845,89.168,89.11,8.64227027]
[1772065453254,156.8427,89.25,89.137,10.0953]
[1772065453255,15.95938012,89.246,89.137,10.0953]
[1772065453455,247.10990558,89.28,89.13,8.64227027]
[1772065453456,8.64227027,89.23,89.13,8.64227027]
[1772065453758,15.95938012,89.209,89.11,8.64227027]
[1772065453955,15.91723707,89.187,89.11,8.64227027]
[1772065456154,15.94307184,89.185,89.11,8.64227027]
[1772065456354,156.8677,89.236,89.09,8.64227027]
[1772065456355,15.94307184,89.179,89.09,8.64227027]
[1772065457059,15.94321756,89.167,89.09,8.64227027]
[1772065458557,15.94321756,89.167,89.11,8.64227027]
[1772065459554,8.64227027,89.22,89.11,8.64227027]
[1772065459555,15.95904842,89.192,89.11,8.64227027]
[1772065459756,15.95904842,89.192,89.13,8.64227027]
[1772065460161,15.95904842,89.192,89.11,8.64227027]
[1772065460162,15.99827967,89.232,89.15,8.64227027]
[1772065460462,15.99827967,89.209,89.11,8.64227027]
[1772065461158,10.0904,89.182,89.11,8.64227027]
[1772065461461,15.99849296,89.181,89.11,8.64227027]
[1772065462560,26.11302961,89.168,89.11,8.64227027]
[1772065462953,16.02102961,89.167,89.11,8.64227027]
[1772065463862,15.98283018,89.165,89.066,10.1034]
[1772065464064,15.98283018,89.165,89.07,8.64227027]
[1772065464365,15.98283018,89.165,89.05,8.64227027]
[1772065464567,15.98283018,89.149,89.05,8.64227027]
[1772065465255,15.98301209,89.133,89.05,8.64227027]
[1772065465465,15.98301209,89.133,89.05,18.68041701]
[1772065465757,15.98301209,89.131,89.05,8.64227027]
[1772065466865,15.98286631,89.129,89.051,10.1051]
[1772065467053,15.98286631,89.129,89.05,8.64227027]
[1772065467458,8.64227027,89.16,89.05,8.64227027]
[1772065467459,15.98286631,89.127,89.05,8.64227027]
[1772065468859,15.98278144,89.119,89.05,8.64227027]
[1772065469061,15.98278144,89.119,89.03,18.68041701]
[1772065469261,15.98278144,89.119,89.031,10.03814674]
[1772065470663,15.99433968,89.107,89.032,10.1073]
[1772065471066,15.99433968,89.107,89.032,20.14544674]
[1772065471267,15.99433968,89.107,89.043,10.106]
[1772065471562,15.99433968,89.107,89.032,10.03814674]
[1772065471761,15.99433968,89.107,89.03,8.64227027]
[1772065471971,15.99403076,89.097,89.03,8.64227027]
[1772065472668,15.99403076,89.097,89.041,10.1063]
[1772065473868,15.99403076,89.097,89.054,10.1047]
[1772065474569,10.0973,89.121,89.054,10.1047]
[1772065474766,16.02003587,89.12,89.054,10.1047]
[1772065476165,16.00998609,89.116,89.03,8.64227027]
[1772065476870,16.00998609,89.109,89.042,10.1061]
[1772065478369,16.00998609,89.109,89.051,10.1051]
[1772065478771,16.00998609,89.109,89.035,10.03814674]
[1772065479169,16.00998609,89.109,89.031,10.03814674]
[1772065479372,16.00998609,89.109,89.035,10.03814674]
[1772065479566,16.00998609,89.109,89.036,10.03814674]
[1772065479870,16.00864295,89.107,89.041,10.1063]
[1772065480272,16.00864295,89.107,89.025,6.0]
[1772065480273,16.00864295,89.107,89.031,10.03814674]
[1772065481174,16.00880997,89.1,89.038,10.1066]
[1772065482179,16.02577866,89.096,89.03,8.63693466]
[1772065483373,16.02577866,89.096,88.973,157.329]
[1772065483374,16.02577866,89.096,89.01,18.6750814]
[1772065483677,16.02577866,89.096,89.01,8.63693466]
[1772065484371,8.63693466,89.11,89.011,10.1097]
[1772065484372,16.06373539,89.068,89.011,10.1097]
[1772065484570,33.65,89.144,88.98,13.38419566]
[1772065484571,16.06373539,89.106,89.03,8.63693466]
[1772065485280,16.06394632,89.103,89.046,10.1057]
[1772065486372,10.0998,89.099,89.046,10.1057]
[1772065486568,16.02246716,89.098,89.038,10.1067]
[1772065486979,16.02263696,89.087,89.03,8.63693466]
[1772065487374,16.02263696,89.085,89.012,9.99634209]
[1772065488072,16.02263696,89.085,88.997,11.31295874]
[1772065488073,16.02263696,89.085,89.034,10.1071]
[1772065488277,20.1912,89.137,89.034,10.1071]
[1772065488278,16.02288886,89.102,89.034,10.1071]
[1772065488478,16.02288886,89.102,89.03,8.63693466]
[1772065488778,26.12468886,89.081,89.03,8.63693466]
[1772065489277,16.02305431,89.08,89.03,8.63693466]
[1772065489473,10.1022,89.078,89.03,8.63693466]
[1772065490078,16.02637266,89.077,89.012,9.99634209]
[1772065490376,16.02637266,89.077,89.01,8.63693466]
[1772065490377,16.02637266,89.077,89.016,9.99634209]
[1772065490871,16.02637266,89.101,89.04,8.63693466]
[1772065491978,16.02637266,89.101,89.041,10.1063]
[1772065492177,16.02637266,89.101,89.041,20.10264209]
[1772065492577,10.0997,89.1,89.041,20.10264209]
[1772065492775,16.02637266,89.101,89.04,8.63693466]
[1772065492776,16.02637266,89.101,89.04,18.63327675]
[1772065492974,16.02637266,89.101,89.023,9.99634209]
[1772065493176,16.02637266,89.101,89.021,9.99634209]
[1772065493374,8.63693466,89.13,89.02,8.63693466]
[1772065493375,15.99012122,89.088,89.023,9.99634209]
[1772065494180,15.99012122,89.088,89.024,9.99634209]
[1772065494876,15.99395843,89.077,89.023,9.99634209]
[1772065495076,15.99395843,89.077,88.99,20.29830086]
[1772065495077,15.99395843,89.077,89.018,9.99634209]
[1772065495375,15.99395843,89.077,89.0,273.22968504]
[1772065495579,15.99408766,89.073,89.0,273.22968504]
[1772065495881,15.99408766,89.073,89.01,8.63693466]
[1772065496584,15.95975506,89.07,89.003,10.1106]
[1772065497182,15.95985374,89.032,88.96,8.63693466]
[1772065497381,15.95985374,89.032,88.95,10.1166]
[1772065497773,10.1077,89.03,88.95,10.1166]
[1772065497974,15.95985374,89.029,88.95,10.1166]
[1772065498283,15.95985374,89.029,88.94,458.82889675]
[1772065498483,16.20984542,89.017,88.94,458.82889675]
[1772065498679,16.20984542,89.017,88.94,448.71109675]
[1772065499181,16.21014175,89.004,88.94,448.71109675]
[1772065500081,16.21014175,89.004,88.94,8.63693466]
[1772065500485,16.3268049,88.992,88.92,8.63693466]
[1772065501187,16.32718387,88.98,88.9,8.63693466]
[1772065502387,16.33558784,88.962,88.889,10.1236]
[1772065502587,16.33558784,88.962,88.89,8.63693466]
[1772065503385,16.33596656,88.959,88.89,8.63693466]
[1772065504082,20.2192,89.013,88.868,433.7545991]
[1772065504083,16.25178919,88.956,88.87,8.63693466]
[1772065504483,16.25178919,88.934,88.87,8.63693466]
[1772065504884,16.25209715,88.953,88.87,8.63693466]
[1772065505083,16.25209715,88.973,88.91,8.63693466]
[1772065505688,10.1142,88.972,88.91,8.63693466]
[1772065505888,16.25209715,88.973,88.91,8.63693466]
[1772065506880,16.27727128,88.972,88.91,8.63693466]
[1772065510489,16.27727128,88.972,88.899,10.1225]
[1772065510684,16.27727128,88.972,88.9,8.63693466]
[1772065511084,16.33138414,88.971,88.9,8.63693466]
[1772065512086,16.34167821,88.968,88.9,8.63693466]
[1772065512788,16.34167821,88.968,88.902,10.1221]
[1772065513293,16.34167821,88.968,88.9,8.63693466]
[1772065513592,16.34167821,88.968,88.922,10.1198]
[1772065513793,16.34201709,89.019,88.922,10.1198]
[1772065514195,16.33142311,88.996,88.931,10.1187]
[1772065514586,16.33142311,88.996,88.94,10.1177]
[1772065515589,16.33142311,88.996,88.949,10.1167]
[1772065515788,16.33142311,88.996,88.94,8.63693466]
[1772065516695,8.63693466,89.05,88.94,8.63693466]
[1772065516696,16.34979092,89.049,88.94,8.63693466]
[1772065516899,16.35011375,88.986,88.872,157.5088]
[1772065517198,16.35011375,88.986,88.94,8.63693466]
[1772065517402,16.35011375,89.028,88.962,10.1153]
[1772065518495,16.49964146,89.025,88.953,10.1163]
[1772065519894,8.63693466,89.06,88.961,10.1154]
[1772065519895,16.50376723,89.016,88.961,10.1154]
[1772065520194,16.50376723,89.016,88.94,8.63693466]
[1772065520592,16.50376723,89.01,88.942,10.1175]
[1772065521599,16.50417183,89.008,88.95,10.1166]
[1772065521804,16.50417183,89.008,88.94,8.63693466]
[1772065522094,20.2055,89.073,88.94,8.63693466]
[1772065522095,16.51443427,89.039,88.94,8.63693466]
[1772065522598,16.51443427,89.027,88.966,10.1148]
[1772065524301,33.65,89.099,89.0,8.63693466]
[1772065524302,16.53084301,89.044,89.0,8.63693466]
[1772065524495,16.53084301,89.098,89.0,8.63693466]
[1772065525696,26.63513979,89.063,89.002,10.1107]
[1772065525900,16.53123979,89.062,89.002,10.1107]
[1772065527001,16.53989229,89.05,88.99,8.63693466]
[1772065527603,16.53989229,89.05,88.903,157.4543]
[1772065527604,16.53989229,89.048,88.96,8.63693466]
[1772065528192,10.1089,89.019,88.96,8.63693466]
[1772065529305,16.50018165,89.025,88.96,8.63693466]
[1772065529895,10.1084,89.023,88.96,8.63693466]
[1772065531804,10.1084,89.023,88.899,20.2448]
[1772065531805,10.1056,89.048,88.98,8.63693466]
[1772065532008,10.1056,89.048,88.919,157.4246]
[1772065532009,16.52021426,89.054,89.0,8.63693466]
[1772065532507,16.45162871,89.071,89.0,8.63693466]
[1772065532705,16.45162871,89.071,88.98,8.63693466]
[1772065532706,16.45162871,89.071,89.02,8.63693466]
[1772065533218,16.45194116,89.089,89.021,10.1086]
[1772065533510,16.45194116,89.109,89.04,8.63693466]
[1772065533706,16.45194116,89.109,89.041,10.1062]
[1772065534505,16.45194116,89.109,89.05,10.1053]
[1772065534713,16.45194116,89.109,89.06,8.63693466]
[1772065535710,16.45194116,89.109,89.02,8.63693466]
[1772065536414,16.45558886,89.098,89.029,10.1077]
[1772065537910,16.45558886,89.098,89.02,18.74563466]
[1772065538715,16.4278062,89.096,89.031,10.1074]
[1772065539014,16.4278062,89.096,89.02,8.63693466]
[1772065539216,16.4278062,89.096,89.03,18.74549052]
[1772065539809,16.42808028,89.093,89.03,18.74549052]
[1772065540015,16.42808028,89.093,89.02,10.1087]
[1772065540715,8.63799052,89.11,89.01,8.63799052]
[1772065540716,16.41790988,89.074,89.011,10.1097]
[1772065541516,16.4181814,89.072,89.019,10.1088]
[1772065541911,16.4181814,89.072,89.01,8.63799052]
[1772065542624,16.4181814,89.072,88.98,8.63799052]
[1772065542807,8.63799052,89.07,88.98,8.63799052]
[1772065543009,16.42839813,89.069,88.98,8.63799052]
[1772065543214,16.42839813,89.05,88.98,8.63799052]
[1772065544320,16.42908075,89.045,88.98,8.63799052]
[1772065544620,16.42908075,89.089,89.0,8.63799052]
[1772065545314,16.4293429,89.059,88.98,8.63799052]
[1772065545914,16.52528706,89.044,88.98,8.63799052]
[1772065546318,16.52528706,89.044,88.96,8.63799052]
[1772065546923,10.1083,89.024,88.961,10.1153]
[1772065547117,26.63388283,89.024,88.961,10.1153]
[1772065547717,10.1088,89.019,88.923,33.65]
[1772065548022,10.1088,89.019,88.95,8.63799052]
[1772065549017,16.52558283,89.023,88.95,8.63799052]
[1772065549217,16.52558283,89.023,88.951,10.1165]
[1772065550020,10.1085,89.022,88.951,10.1165]
[1772065550218,16.51092496,89.044,88.97,8.63799052]
[1772065550423,10.1063,89.041,88.97,8.63799052]
[1772065551017,10.1063,89.041,88.936,11.03269452]
[1772065551018,16.51119493,89.036,88.936,11.03269452]
[1772065551221,16.51119493,89.036,88.97,8.63799052]
[1772065551619,16.51119493,89.036,88.92,8.63799052]
[1772065551620,26.61989493,89.021,88.96,8.63799052]
[1772065552324,16.50078475,89.02,88.96,8.63799052]
[1772065554623,16.50078475,89.02,88.937,10.1181]
[1772065554822,16.44297053,89.012,88.92,8.63799052]
[1772065555029,16.44320706,89.009,88.92,8.63799052]
[1772065556622,16.47434161,88.997,88.92,8.63799052]
[1772065557926,16.47434161,88.997,88.929,10.119]
[1772065558122,16.47434161,88.997,88.92,8.63799052]
[1772065560025,16.27362111,88.994,88.92,8.63799052]
[1772065560327,16.27362111,88.994,88.885,11.47658142]
[1772065560524,16.27362111,88.994,88.9,8.63799052]
[1772065560723,16.27362111,88.989,88.92,8.63799052]
[1772065561123,10.1124,88.988,88.92,8.63799052]
[1772065561330,16.27378065,88.987,88.92,8.63799052]
[1772065562027,16.27464658,89.029,88.94,8.63799052]
[1772065562227,16.27464658,89.029,88.96,8.63799052]
[1772065562930,16.27480389,89.052,88.989,10.1122]
[1772065564137,16.27480389,89.052,88.997,10.1113]
[1772065564640,16.27480389,89.052,89.006,10.1103]
[1772065564829,16.22504197,89.089,89.006,10.1103]
[1772065565033,16.22517802,89.072,89.006,10.1103]